fUSD/lending_fUSD_20240923
["ID","MTS","AMOUNT","RATE_DAILY","PERIOD"]
[338993005,1727107857468,-515.11,0.00012999,2]
[338993006,1727107857478,-500.0,0.00012999,2]
[338993007,1727107857487,-500.0,0.00012999,2]
[338993008,1727107857499,-500.0,0.00012999,2]
[338993009,1727107857509,-500.0,0.00012999,2]
[338993010,1727107857519,-500.0,0.00012999,2]
[338993011,1727107857529,-500.0,0.00012999,2]
[338993012,1727107857538,-500.0,0.00012999,2]
[338993013,1727107857547,-500.0,0.00012999,2]
[338993014,1727107857557,-500.0,0.00012999,2]
[338993015,1727107857566,-500.0,0.00012999,2]
[338993016,1727107857576,-500.0,0.00012999,2]
[338993017,1727107857586,-3485.481627,0.00012999,2]
[338993018,1727107857597,-219.86,0.00012999,2]
[338993019,1727107857607,-3485.481627,0.00012999,2]
[338993020,1727107857616,-311.916834,0.00012999,2]
[338993021,1727107857626,-311.916834,0.00012999,2]
[338993022,1727107857637,-1082.055083,0.00012999,2]
[338993023,1727107857647,-1082.055083,0.00012999,2]
[338993024,1727107857657,-1082.055083,0.00012999,2]
[338993025,1727107857667,-3485.481627,0.00012999,2]
[338993026,1727107857678,-3485.481631,0.00012999,2]
[338993027,1727107857687,-311.916834,0.00012999,2]
[338993028,1727107857697,-311.916831,0.00012999,2]
[338993029,1727107857706,-1082.055083,0.00012999,2]
[338993030,1727107857716,-1082.055083,0.00012999,2]
[338993031,1727107857726,-1082.055083,0.00012999,2]
[338993032,1727107857736,-500.0,0.00012999,2]
[338993033,1727107857750,-500.0,0.00012999,2]
[338993034,1727107857760,-500.0,0.00012999,2]
[338993035,1727107857770,-500.0,0.00012999,2]
[338993036,1727107857779,-500.0,0.00012999,2]
[338993037,1727107857788,-500.0,0.00012999,2]
[338993038,1727107857798,-500.0,0.00012999,2]
[338993039,1727107857808,-529.67,0.00012999,2]
[338993040,1727107857817,-500.0,0.00012999,2]
[338993041,1727107857827,-603.25,0.00012999,2]
[338993042,1727107857836,-151.0,0.00012999,2]
[338993043,1727107857846,-500.0,0.00012999,2]
[338993044,1727107857855,-300.3,0.00012999,2]
[338993045,1727107857865,-500.0,0.00012999,2]
[338993046,1727107857875,-500.0,0.00012999,2]
[338993047,1727107857884,-500.0,0.00012999,2]
[338993048,1727107857893,-500.0,0.00012999,2]
[338993049,1727107857903,-500.0,0.00012999,2]
[338993050,1727107857913,-500.0,0.00012999,2]
[338993051,1727107857922,-500.0,0.00012999,2]
[338993052,1727107857932,-500.0,0.00012999,2]
[338993053,1727107857941,-500.0,0.00012999,2]
[338993054,1727107857951,-500.0,0.00012999,2]
[338993055,1727107857961,-500.0,0.00012999,2]
[338993056,1727107857971,-500.0,0.00012999,2]
[338993057,1727107857981,-500.0,0.00012999,2]
[338993058,1727107857991,-500.0,0.00012999,2]
[338993059,1727107858003,-500.0,0.00012999,2]
[338993060,1727107858012,-500.0,0.00012999,2]
[338993061,1727107858021,-500.0,0.00012999,2]
[338993062,1727107858031,-438.1,0.00012999,2]
[338993063,1727107858041,-500.0,0.00012999,2]
[338993064,1727107858051,-500.0,0.00012999,2]
[338993065,1727107858060,-500.0,0.00012999,2]
[338993066,1727107858070,-259.97,0.00012999,2]
[338993067,1727107858080,-632.6,0.00012999,2]
[338993068,1727107858089,-500.0,0.00012999,2]
[338993069,1727107858099,-500.0,0.00012999,2]
[338993070,1727107858109,-352.74,0.00012999,2]
[338993071,1727107858119,-737.19,0.00012999,2]
[338993072,1727107858128,-737.19,0.00012999,2]
[338993073,1727107858137,-737.19,0.00012999,2]
[338993074,1727107858147,-737.19,0.00012999,2]
[338993075,1727107858157,-737.19,0.00012999,2]
[338993076,1727107858166,-737.19,0.00012999,2]
[338993077,1727107858175,-737.19,0.00012999,2]
[338993078,1727107858185,-737.19,0.00012999,2]
[338993079,1727107858195,-737.19,0.00012999,2]
[338993080,1727107858204,-737.19,0.00012999,2]
[338993081,1727107858213,-737.19,0.00012999,2]
[338993082,1727107858223,-737.19,0.00012999,2]
[338993083,1727107858232,-7680358.64362906,0.00013,2]
[338993084,1727107858241,-199.1,0.00013,2]
[338993085,1727107858253,-1350.0,0.00013,10]
[338993086,1727107858262,-2000.0,0.00013,2]
[338993087,1727107858271,-204.0,0.00013,2]
[338993088,1727107858281,-204.0,0.00013,2]
[338993089,1727107858292,-5000.0,0.00013,2]
[338993090,1727107858302,-330917.05316258,0.00013,2]
[338993091,1727107858525,-324356.61485598,0.00013,2]
[338993092,1727107858536,-49755.18717018,0.00013,2]
[338993093,1727107858548,-228795.93175319,0.00013,2]
[338993094,1727107858560,-1210.81,0.00013,2]
[338993095,1727107858572,-526.45513624,0.00013,2]
[338993096,1727107858740,-187.7597,0.00011366,2]
[338993097,1727107858753,-114.4703,0.00012993,2]
[338993098,1727107858768,-300.1,0.00012993,2]
[338993099,1727107858781,-85.4297,0.00012993,2]
[338993100,1727107858790,-221.95588639,0.00012994,2]
[338993101,1727107858802,-274.264,0.00012994,2]
[338993102,1727107858816,-3.78011361,0.00012994,2]
[338993103,1727107858825,-306.08488639,0.00012994,2]
[338993104,1727107858838,-193.91511361,0.00012994,2]
[338993105,1727107858847,-500.0,0.00012995,2]
[338993106,1727107858858,-500.0,0.00012995,2]
[338993107,1727107858867,-500.0,0.00012995,2]
[338993108,1727107858877,-500.0,0.00012995,2]
[338993109,1727107858887,-500.0,0.00012995,2]
[338993110,1727107858897,-500.0,0.00012995,2]
[338993111,1727107858907,-500.0,0.00012995,2]
[338993112,1727107858917,-151.0,0.00012996,2]
[338993113,1727107858927,-151.0,0.00012996,2]
[338993114,1727107858937,-500.0,0.00012996,2]
[338993115,1727107858948,-500.0,0.00012996,2]
[338993116,1727107858958,-500.0,0.00012996,2]
[338993117,1727107858967,-500.0,0.00012996,2]
[338993118,1727107858977,-500.0,0.00012996,2]
[338993119,1727107858988,-151.0,0.00012997,2]
[338993120,1727107858999,-151.0,0.00012997,2]
[338993121,1727107859014,-151.0,0.00012998,2]
[338993122,1727107859023,-737.34718015,0.00012999,2]
[338993123,1727107859033,-151.0,0.00012999,2]
[338993124,1727107859043,-9808.36391524,0.00013,2]
[338993125,1727107859055,-12178.28593014,0.00013,2]
[338993126,1727107859066,-16774.24069954,0.00013,2]
[338993127,1727107859077,-392.857998,0.00013,2]
[338993128,1727107859089,-733.84056487,0.00013,2]
[338993129,1727107859113,-500.0,0.00012997,2]
[338993130,1727107859123,-141.85958326,0.00013,2]
[338993131,1727107859134,-1045.14,0.00013,2]
[338993132,1727107859145,-659.44059965,0.00013,2]
[338993133,1727107859156,-2057.28,0.00013,2]
[338993134,1727107859167,-588.039975,0.00013,2]
[338993135,1727107859184,-151.0,0.00012999,2]
[338993136,1727107859193,-348097.12095761,0.00013,2]
[338993137,1727107859204,-31386.70792399,0.00013,2]
[338993138,1727107859216,-15129.77004963,0.00013,2]
[338993139,1727107859227,-471.22108419,0.00013,2]
[338993140,1727107859243,-223.47,0.00012997,2]
[338993141,1727107859256,-423.99735558,0.00013,2]
[338993142,1727107859266,-536.28001313,0.00013,2]
[338993143,1727107859277,-30000.0,0.00013,2]
[338993144,1727107859289,-827.37773051,0.00013,2]
[338993145,1727107859300,-10386.38,0.00013,2]
[338993146,1727107859311,-5203.47580105,0.00013,2]
[338993147,1727107859328,-298798.17722939,0.00013,2]
[338993148,1727107859485,-334.02653426,0.00012893,2]
[338993149,1727107859495,-1131.86438853,0.00012928,2]
[338993150,1727107859508,-817.32238047,0.00012928,2]
[338993151,1727107859517,-216.27482876,0.00012994,2]
[338993152,1727107859528,-28.64675024,0.00012994,2]
[338993153,1727107859538,-151.0,0.00012994,2]
[338993154,1727107859547,-244.921579,0.00012994,2]
[338993155,1727107859556,-8.30601694,0.00012994,2]
[338993156,1727107859568,-142.69398306,0.00012994,2]
[338993157,1727107859577,-500.0,0.00012994,2]
[338993158,1727107859587,-244.921579,0.00012995,2]
[338993159,1727107859597,-244.921579,0.00012995,2]
[338993160,1727107859607,-151.0,0.00012995,2]
[338993161,1727107859617,-153.34007644,0.00012996,2]
[338993162,1727107859626,-244.921579,0.00012996,2]
[338993163,1727107859635,-244.921579,0.00012996,2]
[338993164,1727107859645,-151.0,0.00012996,2]
[338993165,1727107859654,-244.921579,0.00012997,2]
[338993166,1727107859663,-500.0,0.00012998,2]
[338993167,1727107859675,-500.0,0.00012998,2]
[338993168,1727107859685,-472.93,0.00012999,2]
[338993169,1727107859694,-288103.38744058,0.00013,2]
[338993170,1727107859706,-606.13570382,0.00013,2]
[338993171,1727107859718,-8595.38102943,0.00013,2]
[338993172,1727107859730,-690.60504577,0.00013,2]
[338993173,1727107859744,-5000.0,0.00013,2]
[338993174,1727107859762,-1645.49070823,0.00013,2]
[338993175,1727107859773,-789.18618,0.00013,2]
[338993176,1727107859784,-1408.82174182,0.00013,2]
[338993177,1727107859796,-2635.15652636,0.00013,2]
[338993178,1727107859808,-4506.06258621,0.00013,2]
[338993179,1727107859822,-2417.41677453,0.00013,2]
[338993180,1727107859836,-6646.89595268,0.00013,2]
[338993181,1727107859855,-151.0,0.00012996,2]
[338993182,1727107859866,-1204.77578172,0.00013,2]
[338993183,1727107859877,-1289.4108312,0.00013,2]
[338993184,1727107859888,-4203.54536531,0.00013,2]
[338993185,1727107859900,-837.1615839,0.00013,2]
[338993186,1727107859911,-1221.72,0.00013,2]
[338993187,1727107859923,-456.80005735,0.00013,2]
[338993188,1727107859934,-1138.28203649,0.00013,2]
[338993189,1727107859952,-926.66902096,0.00013,2]
[338993190,1727107859963,-447.40417647,0.00013,2]
[338993191,1727107859975,-1568.92074396,0.00013,2]
[338993192,1727107859991,-3816.05933688,0.00013,2]
[338993193,1727107860005,-2192.36880359,0.00013,2]
[338993194,1727107860017,-270.462826,0.00013,2]
[338993195,1727107860029,-1748.9835148,0.00013,2]
[338993196,1727107860041,-1710.75555846,0.00013,2]
[338993197,1727107860053,-1073.61091901,0.00013,2]
[338993198,1727107860071,-244.921579,0.00012998,2]
[338993199,1727107860080,-60.078421,0.00013,2]
[338993205,1727107889911,464.53477336,9.724e-05,2]
[338993214,1727108023916,415.0,0.00011101,2]
[338993215,1727108070723,150.0,0.00015059,120]
[338993216,1727108092721,504.16659606,0.00012999,30]
[338993217,1727108178832,169.07,0.00010959,2]
[338993220,1727108378370,421.61,0.00010009,2]
[338993226,1727108790787,150.0,0.00014957,120]
[338993235,1727108917834,1050.0,0.00011,2]
[338993241,1727108965316,400.52,9.789e-05,2]
[338993264,1727109031913,-416.54,0.00011698,2]
[338993265,1727109031922,-250.0,0.00011754,2]
[338993266,1727109031932,-250.0,0.00011808,2]
[338993267,1727109031945,-250.0,0.00011808,2]
[338993268,1727109031954,-259.22150624,0.00011834,2]
[338993269,1727109031967,-740.77849376,0.00011834,2]
[338993270,1727109031976,-200.0,0.00011835,2]
[338993271,1727109031988,-500.0,0.00011878,2]
[338993272,1727109031997,-2000.0,0.00011891,2]
[338993273,1727109032007,-2796.03367359,0.00011919,2]
[338993274,1727109032018,-1837.68576623,0.00011919,2]
[338993275,1727109032030,-4165.75056018,0.00011919,2]
[338993276,1727109032040,-2271.08683295,0.00011924,2]
[338993277,1727109032056,-1041.76047077,0.00011924,2]
[338993278,1727109032067,-115.17269628,0.00011924,2]
[338993279,1727109032077,-388.74,0.00011927,2]
[338993280,1727109032086,-499.99,0.00011946,2]
[338993281,1727109032096,-299.99,0.00011946,2]
[338993282,1727109032106,-503.64,0.00012003,2]
[338993283,1727109032116,-175.5,0.00012043,2]
[338993284,1727109032126,-101.74230372,0.00012053,2]
[338993285,1727109032137,-298.77769628,0.00012053,2]
[338993286,1727109032150,-150.0,0.000123,2]
[338993287,1727109032161,-428.27,0.000123,2]
[338993288,1727109032171,-301.41,0.000123,2]
[338993289,1727109032180,-150.0,0.000123,2]
[338993290,1727109032190,-300.0,0.000123,2]
[338993291,1727109032200,-428.27,0.000123,2]
[338993292,1727109032209,-176.1,0.00012445,2]
[338993293,1727109032222,-274.2016,0.00012696,2]
[338993294,1727109032231,-428.27,0.000127,2]
[338993295,1727109032241,-856.54,0.000127,2]
[338993296,1727109032250,-150.0,0.000127,2]
[338993298,1727109032260,-150.0,0.000127,2]
[338993300,1727109032269,-913.62,0.000127,2]
[338993302,1727109032279,-150.0,0.000127,2]
[338993304,1727109032288,-150.0,0.00012795,2]
[338993306,1727109032298,-3693.99184054,0.00012795,2]
[338993308,1727109032308,-953.85457124,0.00012796,2]
[338993311,1727109032324,-436.64173545,0.00012796,2]
[338993313,1727109032340,-564.33772582,0.00012796,2]
[338993315,1727109032352,-8240.77838458,0.00012796,2]
[338993317,1727109032363,-3255.09037,0.00012796,2]
[338993320,1727109032375,-849.36959246,0.00012796,2]
[338993322,1727109032386,-15011.14076,0.00012796,2]
[338993339,1727109038078,-9720.31866045,0.00012796,2]
[338993340,1727109038089,-36186.4200323,0.00012796,2]
[338993341,1727109038137,-23923.33231431,0.00012796,2]
[338993342,1727109038155,-5591.26960085,0.00012796,2]
[338993343,1727109038169,-1300.0,0.00012796,2]
[338993344,1727109038181,-926.58010622,0.00012796,2]
[338993345,1727109038193,-12822.20504632,0.00012796,2]
[338993346,1727109038202,-500.0,0.00012796,2]
[338993347,1727109038211,-210.55132363,0.00012799,2]
[338993348,1727109038223,-856.54,0.000128,2]
[338993349,1727109038235,-150.0,0.000128,2]
[338993350,1727109038244,-154.12,0.000128,2]
[338993351,1727109038253,-301.16,0.000128,2]
[338993352,1727109038265,-3693.99184046,0.00012807,2]
[338993353,1727109038275,-795.0332418,0.00012818,2]
[338993354,1727109038416,-2898.95859866,0.00012818,2]
[338993355,1727109038426,-500.0,0.00012873,2]
[338993356,1727109038435,-162.25,0.0001289,2]
[338993357,1727109038445,-2357.7003,0.00012894,2]
[338993358,1727109038454,-500.0,0.00012895,2]
[338993359,1727109038463,-500.0,0.00012895,2]
[338993360,1727109038472,-500.0,0.00012895,2]
[338993362,1727109038481,-500.0,0.00012895,2]
[338993364,1727109038490,-500.0,0.00012895,2]
[338993365,1727109038499,-500.0,0.00012895,2]
[338993367,1727109038508,-500.0,0.00012895,2]
[338993370,1727109038517,-500.0,0.00012895,2]
[338993372,1727109038527,-500.0,0.00012895,2]
[338993374,1727109038535,-501.2048456,0.00012895,2]
[338993376,1727109038545,-500.0,0.00012895,2]
[338993377,1727109038554,-500.0,0.00012895,2]
[338993380,1727109038563,-500.0,0.00012895,2]
[338993381,1727109038571,-500.0,0.00012895,2]
[338993384,1727109038581,-500.0,0.00012895,2]
[338993386,1727109038590,-500.0,0.00012895,2]
[338993387,1727109038599,-502.56783241,0.00012895,2]
[338993389,1727109038609,-522.94833612,0.00012895,2]
[338993391,1727109038618,-496.99895429,0.00012895,2]
[338993394,1727109038627,-500.0,0.00012895,2]
[338993396,1727109038636,-500.0,0.00012895,2]
[338993397,1727109038646,-500.0,0.00012895,2]
[338993399,1727109038655,-500.0,0.00012895,2]
[338993401,1727109038667,-500.0,0.00012895,2]
[338993402,1727109038678,-500.0,0.00012895,2]
[338993403,1727109038686,-500.0,0.00012895,2]
[338993404,1727109038695,-501.09425033,0.00012895,2]
[338993405,1727109038704,-500.0,0.00012895,2]
[338993406,1727109038713,-500.0,0.00012895,2]
[338993407,1727109038722,-500.0,0.00012895,2]
[338993408,1727109038731,-500.0,0.00012895,2]
[338993409,1727109038739,-500.0,0.00012895,2]
[338993410,1727109038748,-500.0,0.00012895,2]
[338993411,1727109038757,-500.0,0.00012895,2]
[338993412,1727109038766,-500.0,0.00012895,2]
[338993413,1727109038775,-500.0,0.00012895,2]
[338993414,1727109038784,-239.21728289,0.00012895,2]
[338993415,1727109038796,-260.78271711,0.00012895,2]
[338993416,1727109038805,-45.06728289,0.00012895,2]
[338993418,1727109038816,-454.93271711,0.00012895,2]
[338993419,1727109038825,-147.44353072,0.00012895,2]
[338993422,1727109038836,-352.55646928,0.00012895,2]
[338993424,1727109038845,-500.0,0.00012895,2]
[338993425,1727109038854,-500.0,0.00012895,2]
[338993427,1727109038863,-500.0,0.00012895,2]
[338993428,1727109038872,-500.0,0.00012895,2]
[338993430,1727109038882,-604.82,0.00012895,2]
[338993432,1727109038892,-10986.7987,0.00012895,2]
[338993433,1727109038901,-500.0,0.00012896,2]
[338993435,1727109038914,-2000.0,0.00012896,2]
[338993437,1727109038923,-500.0,0.00012896,2]
[338993438,1727109038932,-500.0,0.00012898,2]
[338993440,1727109038941,-500.0,0.00012898,2]
[338993441,1727109038950,-500.0,0.00012898,2]
[338993443,1727109038959,-817.67,0.00012898,2]
[338993445,1727109038969,-228.02382355,0.00012898,2]
[338993603,1727109046201,-1590.5069,0.0001283,2]
[338994322,1727109267916,202.96,0.00010959,2]
[338994327,1727109551074,360.46,0.00010052,2]
[338994331,1727109815633,1001.7453232,0.00012999,30]
[338994332,1727109815689,224.64,0.00010959,2]
[338994339,1727109955494,190.26,0.00010959,2]
[338994341,1727109977017,208.55,0.00010959,2]
[338994342,1727109986792,4932.63901711,0.00015,120]
[338994343,1727109987690,173.79,0.00010959,2]
[338994344,1727109998503,869.0,0.00010959,2]
[338994375,1727110194880,716.0,0.00010959,2]
[338994388,1727110232088,-248.226519,0.00011427,2]
[338994389,1727110232098,-226.0298826,0.00011428,2]
[338994390,1727110232109,-929.4901174,0.00011428,2]
[338994391,1727110232119,-459.53,0.00011484,2]
[338994392,1727110232128,-250.0,0.00011596,2]
[338994393,1727110232138,-712.94771173,0.00011658,2]
[338994394,1727110232147,-182.5995416,0.00011664,2]
[338994395,1727110232157,-571.58531558,0.00011664,2]
[338994396,1727110232171,-141.36239614,0.00011664,2]
[338994397,1727110232181,-158.32760396,0.00011758,2]
[338994398,1727110232193,-290.16336359,0.00011758,2]
[338994399,1727110232204,-29.68903245,0.00011758,2]
[338994400,1727110232214,-300.0,0.00011764,2]
[338994401,1727110232225,-4273.35092254,0.00011765,2]
[338994402,1727110232237,-668.27544164,0.00011765,2]
[338994403,1727110232250,-1355.56530235,0.00011765,2]
[338994404,1727110232269,-335.08950845,0.00011765,2]
[338994405,1727110232280,-276.52,0.00011765,2]
[338994406,1727110232291,-2034.3771887,0.00011765,2]
[338994407,1727110232302,-250.0,0.00011765,2]
[338994408,1727110232313,-752.76793986,0.00011765,2]
[338994409,1727110232324,-1995.85839646,0.00011765,2]
[338994410,1727110232334,-791.49955111,0.00011769,2]
[338994411,1727110232345,-1208.50044889,0.00011769,2]
[338994412,1727110232354,-250.0,0.00011795,2]
[338994413,1727110232363,-250.0,0.00011807,2]
[338994414,1727110232372,-156.25,0.00011848,2]
[338994415,1727110232382,-135.24955111,0.00011865,2]
[338994416,1727110232395,-116.57044889,0.00011865,2]
[338994417,1727110232404,-523.14,0.00011875,2]
[338994418,1727110232415,-961.67530111,0.00011974,2]
[338994419,1727110232427,-38.32469889,0.00011974,2]
[338994420,1727110232438,-167.74,0.00011981,2]
[338994421,1727110232448,-500.0,0.00012,2]
[338994422,1727110232459,-500.0,0.00012,2]
[338994423,1727110232470,-500.0,0.00012,2]
[338994424,1727110232482,-500.0,0.00012,2]
[338994425,1727110232492,-400.0,0.00012,2]
[338994426,1727110232502,-500.0,0.00012,2]
[338994427,1727110232512,-500.0,0.00012,2]
[338994428,1727110232522,-500.0,0.00012,2]
[338994429,1727110232532,-428.27,0.00012178,2]
[338994430,1727110232541,-360.46,0.00012316,2]
[338994431,1727110232550,-167.09,0.00012445,2]
[338994432,1727110232559,-428.27,0.000125,2]
[338994433,1727110232570,-428.27,0.000125,2]
[338994434,1727110232581,-150.0,0.00012685,2]
[338994435,1727110232590,-1448.8051197,0.00012699,2]
[338994436,1727110232604,-1433.41254795,0.00012699,2]
[338994437,1727110232613,-150.0,0.000127,2]
[338994438,1727110232622,-428.27,0.000127,2]
[338994439,1727110232630,-150.0,0.000127,2]
[338994440,1727110232639,-428.27,0.000127,2]
[338994441,1727110232648,-168.64780149,0.000127,2]
[338994442,1727110232657,-2882.21766763,0.00012721,2]
[338994443,1727110232667,-549.62131274,0.00012744,2]
[338994444,1727110232937,-945.99845857,0.00012744,2]
[338994445,1727110232950,-401.44091038,0.00012744,2]
[338994446,1727110232961,-460.19652237,0.00012744,2]
[338994447,1727110232972,-524.96046357,0.00012744,2]
[338994448,1727110232982,-2882.21766763,0.00012766,2]
[338994449,1727110232991,-500.0,0.00012773,2]
[338994450,1727110233001,-157.41,0.00012788,2]
[338994451,1727110233011,-2644.29693228,0.00012788,2]
[338994452,1727110233022,-237.92073535,0.00012788,2]
[338994453,1727110233031,-396.21276465,0.00012795,2]
[338994454,1727110233042,-312.4205569,0.00012795,2]
[338994455,1727110233053,-432.000004,0.00012795,2]
[338994456,1727110233064,-806.59811442,0.00012795,2]
[338994457,1727110233075,-415.32536003,0.00012795,2]
[338994458,1727110233084,-150.0,0.00012797,2]
[338994459,1727110233093,-323.82613541,0.00012798,2]
[338994460,1727110233103,-382.31751455,0.00012798,2]
[338994461,1727110233114,-846.08694448,0.00012798,2]
[338994462,1727110233125,-702.93574009,0.00012798,2]
[338994463,1727110233139,-16570.37783984,0.00012798,2]
[338994464,1727110233149,-389.84087267,0.00012798,2]
[338994465,1727110233161,-11177.92299829,0.00012798,2]
[338994472,1727110238206,-63491.59336379,0.00012798,2]
[338994473,1727110238217,-5600.74336425,0.00012798,2]
[338994474,1727110238315,-847452.68764634,0.00012798,2]
[338994475,1727110238324,-229485.9116,0.00012799,2]
[338994476,1727110238336,-3973.45480396,0.00012799,2]
[338994477,1727110238346,-150.0,0.000128,2]
[338994478,1727110238357,-856.54,0.000128,2]
[338994479,1727110238367,-150.0,0.000128,2]
[338994480,1727110238377,-2882.21766763,0.00012811,2]
[338994481,1727110238388,-2882.21766763,0.00012833,2]
[338994482,1727110238398,-2882.21766763,0.00012855,2]
[338994483,1727110238408,-157.41,0.00012866,2]
[338994484,1727110238417,-500.0,0.00012873,2]
[338994485,1727110238426,-301.17200511,0.00012873,2]
[338994486,1727110238436,-500.0,0.00012873,2]
[338994487,1727110238447,-500.0,0.00012876,2]
[338994488,1727110238456,-500.0,0.00012876,2]
[338994489,1727110238465,-192.64901124,0.00012876,2]
[338994490,1727110238475,-501.29581394,0.00012876,2]
[338994491,1727110238484,-503.06066946,0.00012876,2]
[338994492,1727110238494,-501.18284853,0.00012876,2]
[338994493,1727110238504,-504.77787711,0.00012876,2]
[338994494,1727110238515,-505.57129659,0.00012876,2]
[338994495,1727110238528,-503.56523072,0.00012876,2]
[338994496,1727110238538,-500.77412287,0.00012876,2]
[338994497,1727110238548,-501.14017243,0.00012876,2]
[338994498,1727110238558,-504.68903973,0.00012876,2]
[338994499,1727110238569,-501.92714466,0.00012876,2]
[338994500,1727110238578,-500.0,0.00012876,2]
[338994501,1727110238588,-500.0,0.00012876,2]
[338994503,1727110238598,-500.0,0.00012876,2]
[338994505,1727110238607,-500.0,0.00012876,2]
[338994506,1727110238617,-500.0,0.00012876,2]
[338994507,1727110238627,-500.0,0.00012876,2]
[338994508,1727110238636,-500.0,0.00012876,2]
[338994509,1727110238645,-641.42541503,0.00012876,2]
[338994510,1727110238654,-500.0,0.00012876,2]
[338994534,1727110238664,-500.0,0.00012876,2]
[338994536,1727110238891,-501.00336533,0.00012876,2]
[338994538,1727110238900,-500.0,0.00012876,2]
[338994540,1727110238911,-500.0,0.00012876,2]
[338994542,1727110238920,-500.0,0.00012876,2]
[338994544,1727110238930,-500.0,0.00012876,2]
[338994546,1727110238939,-500.0,0.00012876,2]
[338994548,1727110238949,-500.0,0.00012876,2]
[338994549,1727110238959,-500.0,0.00012876,2]
[338994550,1727110238968,-500.0,0.00012876,2]
[338994551,1727110238978,-500.0,0.00012876,2]
[338994552,1727110238987,-500.0,0.00012876,2]
[338994553,1727110238997,-530.91407257,0.00012876,2]
[338994554,1727110239006,-500.0,0.00012876,2]
[338994555,1727110239017,-500.0,0.00012876,2]
[338994556,1727110239027,-500.0,0.00012876,2]
[338994557,1727110239037,-500.0,0.00012876,2]
[338994558,1727110239046,-649.05278794,0.00012876,2]
[338994559,1727110239055,-500.0,0.00012876,2]
[338994560,1727110239064,-500.0,0.00012876,2]
[338994561,1727110239074,-500.0,0.00012876,2]
[338994562,1727110239083,-500.0,0.00012876,2]
[338994563,1727110239092,-500.0,0.00012876,2]
[338994564,1727110239102,-500.0,0.00012876,2]
[338994565,1727110239111,-500.0,0.00012876,2]
[338994566,1727110239120,-500.0,0.00012876,2]
[338994567,1727110239130,-638.13643802,0.00012876,2]
[338994568,1727110239139,-500.0,0.00012876,2]
[338994570,1727110239148,-500.0,0.00012876,2]
[338994571,1727110239158,-500.0,0.00012876,2]
[338994572,1727110239167,-500.0,0.00012876,2]
[338994573,1727110239176,-500.0,0.00012876,2]
[338994574,1727110239185,-500.0,0.00012876,2]
[338994575,1727110239195,-500.0,0.00012876,2]
[338994577,1727110239204,-547.60389809,0.00012876,2]
[338994578,1727110239214,-500.0,0.00012876,2]
[338994579,1727110239223,-500.0,0.00012876,2]
[338994580,1727110239232,-500.0,0.00012876,2]
[338994581,1727110239242,-500.0,0.00012876,2]
[338994582,1727110239251,-501.12175874,0.00012876,2]
[338994583,1727110239260,-500.0,0.00012876,2]
[338994584,1727110239272,-500.0,0.00012876,2]
[338994585,1727110239281,-500.0,0.00012876,2]
[338994586,1727110239291,-232.07341913,0.00012876,2]
[338994587,1727110239300,-500.0,0.00012876,2]
[338994588,1727110239309,-500.0,0.00012876,2]
[338994589,1727110239318,-500.0,0.00012876,2]
[338994590,1727110239327,-500.0,0.00012876,2]
[338994591,1727110239336,-500.0,0.00012876,2]
[338994592,1727110239345,-500.0,0.00012876,2]